bitfinex-derivatives/quotes_BTCF0:USTF0_20250313
["timestamp","ask_amount","ask_price","bid_price","bid_amount"]
[1741874333450,0.23,81721.0,81720.0,0.122391]
[1741874333655,0.2911948,81721.0,81714.0,0.1223995]
[1741874333965,0.1224075,81709.0,81708.0,0.00018357]
[1741874334165,0.2313,81720.0,81708.0,0.00018357]
[1741874334463,0.2407,81715.0,81708.0,0.00018357]
[1741874334666,0.2313,81714.0,81713.0,0.1224012]
[1741874334957,0.001,81717.0,81716.0,0.122397]
[1741874335260,0.17552,81748.0,81724.0,0.0611919]
[1741874335465,0.2313,81737.0,81712.0,0.12237805]
[1741874335664,0.472,81737.0,81736.0,0.1223671]
[1741874335961,0.2194,81753.0,81727.0,0.17544]
[1741874336169,0.4788,81737.0,81736.0,0.1223671]
[1741874337855,0.0038363,81738.0,81737.0,0.1223656]
[1741874338059,0.0018363,81738.0,81737.0,0.1223656]
[1741874338255,0.005,81737.0,81736.0,0.1233671]
[1741874338458,0.005,81737.0,81736.0,0.3633671]
[1741874339360,0.00018357,81745.0,81744.0,0.1223551]
[1741874340859,0.1223591,81742.0,81737.0,0.1233641]
[1741874341062,0.00018357,81745.0,81733.0,0.0611852]
[1741874341063,0.4692,81741.0,81733.0,0.0611852]
[1741874341262,0.005,81737.0,81733.0,0.02]
[1741874341566,0.005,81737.0,81736.0,0.1223671]
[1741874341771,0.005,81737.0,81730.0,0.1223761]
[1741874342063,0.4692,81736.0,81730.0,0.22]
[1741874342254,0.005,81742.0,81733.0,0.0611852]
[1741874342460,0.005,81742.0,81741.0,0.1223596]
[1741874342655,0.4629,81744.0,81743.0,0.1223566]
[1741874343067,0.4629,81744.0,81726.0,0.00904281]
[1741874343264,0.4629,81744.0,81743.0,0.1223566]
[1741874343463,0.4629,81744.0,81741.0,0.0611791]
[1741874343670,0.4629,81744.0,81731.0,0.4655]
[1741874343974,0.122361,81741.0,81731.0,0.7255]
[1741874344160,0.4457,81740.0,81734.0,0.1223693]
[1741874344467,0.004,81742.0,81734.0,0.22]
[1741874344667,0.2237,81739.0,81736.0,0.0611835]
[1741874344860,0.222,81738.0,81736.0,0.1223664]
[1741874345060,0.222,81738.0,81731.0,0.4655]
[1741874345262,0.004,81742.0,81741.0,0.1223596]
[1741874345464,0.004,81742.0,81741.0,0.1323596]
[1741874345657,0.00018357,81745.0,81744.0,0.1223551]
[1741874345961,0.4617,81767.0,81764.0,0.1223249]
[1741874346269,0.4617,81767.0,81766.0,0.1223222]
[1741874346658,0.4617,81767.0,81764.0,0.122324]
[1741874346863,0.4617,81767.0,81760.0,0.0611649]
[1741874347169,0.4617,81767.0,81766.0,0.1223222]
[1741874347558,0.1223342,81758.0,81746.0,0.0611759]
[1741874347866,0.1223342,81758.0,81751.0,0.1223439]
[1741874348066,0.1223342,81758.0,81746.0,0.1223519]
[1741874348257,0.1223342,81758.0,81740.0,0.4194]
[1741874348459,0.2298,81757.0,81731.0,0.4698]
[1741874348664,0.2298,81757.0,81731.0,0.74057015]
[1741874348870,0.2298,81757.0,81749.0,0.1223468]
[1741874349062,0.2298,81757.0,81731.0,0.48057015]
[1741874349262,0.2298,81757.0,81755.0,0.1223378]
[1741874349571,0.2298,81757.0,81740.0,0.21074428]
[1741874349772,0.2298,81757.0,81736.0,0.00018345]
[1741874349961,0.1223559,81744.0,81738.0,0.1223634]
[1741874350167,0.2298,81743.0,81739.0,0.1223617]
[1741874350363,0.2298,81743.0,81736.0,0.00018345]
[1741874350667,0.1223656,81737.0,81736.0,0.00018345]
[1741874350857,0.2298,81743.0,81720.0,0.01092587]
[1741874350858,0.24049228,81743.0,81720.0,0.01092587]
[1741874351061,0.24049228,81743.0,81721.0,0.4681]
[1741874351261,0.24049228,81743.0,81731.0,0.001]
[1741874351262,0.1223731,81732.0,81731.0,0.001]
[1741874351466,0.0611974,81718.0,81715.0,0.29103803]
[1741874351661,0.0611931,81724.0,81715.0,0.29103803]
[1741874351662,0.2259,81717.0,81716.0,0.122397]
[1741874351865,0.0611822,81738.0,81717.0,0.0611974]
[1741874352061,0.00018357,81725.0,81720.0,0.009]
[1741874352268,0.00018357,81725.0,81724.0,0.1223851]
[1741874352470,0.1223895,81721.0,81720.0,0.009]
[1741874352675,0.2259,81724.0,81720.0,0.005]
[1741874352868,0.2259,81724.0,81716.0,0.2357]
[1741874353063,0.2259,81724.0,81716.0,0.001]
[1741874353586,0.2259,81724.0,81717.0,0.0611977]
[1741874353774,0.2259,81724.0,81723.0,0.1223866]
[1741874354273,0.00018357,81725.0,81723.0,0.1223866]
[1741874354575,0.2213,81738.0,81724.0,0.2313]
[1741874354971,0.0611832,81737.0,81722.0,0.40942]
[1741874355173,0.2213,81738.0,81722.0,0.40942]
[1741874355174,0.2213,81738.0,81728.0,0.1223787]
[1741874355371,0.1223866,81723.0,81722.0,0.17472]
[1741874355673,0.001,81724.0,81723.0,0.1223866]
[1741874355971,0.001,81724.0,81723.0,0.5891866]
[1741874356171,0.001,81725.0,81724.0,0.1223851]
[1741874356669,0.1223716,81733.0,81732.0,0.0611861]
[1741874356865,0.2213,81736.0,81732.0,0.0611861]
[1741874357061,0.2213,81736.0,81735.0,0.1223686]
[1741874357474,0.17772693,81762.0,81735.0,0.03]
[1741874357673,0.2192,81750.0,81746.0,0.1223515]
[1741874357866,0.1223477,81749.0,81746.0,0.1223515]
[1741874358063,0.2192,81750.0,81734.0,0.4569]
[1741874358370,0.2192,81748.0,81747.0,0.1223506]
[1741874358975,0.1223525,81746.0,81742.0,0.1223575]
[1741874359171,0.2192,81745.0,81739.0,0.01091764]
[1741874359375,0.1223579,81743.0,81742.0,0.1223569]
[1741874359573,0.2192,81745.0,81744.0,0.1223551]
[1741874361270,0.002,81748.0,81747.0,0.1223506]
[1741874361677,0.002,81748.0,81745.0,0.4584]
[1741874361982,0.2378,81750.0,81749.0,0.1223476]
[1741874362479,0.01119842,81770.0,81749.0,0.23288]
[1741874362679,0.2378,81769.0,81768.0,0.1223192]
[1741874362868,0.4613,81769.0,81768.0,0.13322483]
[1741874363065,0.4613,81769.0,81768.0,0.1223192]
[1741874363465,0.2334,81777.0,81767.0,0.4752]
[1741874363668,0.4536,81776.0,81771.0,0.1223147]
[1741874363874,0.2301,81776.0,81771.0,0.1223147]
[1741874364565,0.2301,81776.0,81775.0,0.1223087]
[1741874364781,0.17772693,81784.0,81783.0,0.1222968]
[1741874364975,0.07873221,81784.0,81783.0,0.1222968]
[1741874365274,0.21173698,81789.0,81788.0,0.1222893]
[1741874365479,0.21173698,81789.0,81782.0,0.4594]
[1741874365669,0.2301,81788.0,81775.0,0.40474]
[1741874365873,0.2301,81788.0,81777.0,0.00018344]
[1741874366070,0.1222943,81785.0,81777.0,0.00018344]
[1741874366272,0.1223042,81778.0,81777.0,0.00018344]
[1741874367267,0.2164,81779.0,81759.0,0.17136]
[1741874367469,0.2164,81779.0,81756.0,0.28000517]
[1741874367470,0.2164,81777.0,81756.0,0.21883677]
[1741874367672,0.22749113,81777.0,81756.0,0.21883677]
[1741874367870,0.22749113,81777.0,81760.0,0.21074428]
[1741874368179,0.2164,81777.0,81760.0,0.46074428]
[1741874368384,0.21658302,81777.0,81776.0,0.1223072]
[1741874368982,0.0611372,81798.0,81769.0,0.4542]
[1741874369168,0.2164,81784.0,81783.0,0.1222968]
[1741874369673,0.004,81777.0,81776.0,0.1223072]
[1741874370183,0.2164,81784.0,81781.0,0.1222984]
[1741874370484,1.63313698,81809.0,81781.0,0.1422984]
[1741874370485,0.003,81798.0,81781.0,0.1422984]
[1741874370781,0.226,81798.0,81797.0,0.1222758]
[1741874371488,0.003,81798.0,81797.0,0.1222758]
[1741874371686,0.003,81798.0,81797.0,0.5832758]
[1741874372278,0.00183478,81802.0,81799.0,0.1222728]
[1741874372581,0.00183478,81802.0,81799.0,0.13322228]
[1741874372977,0.21173698,81809.0,81799.0,0.07094948]
[1741874373186,0.21173698,81809.0,81808.0,0.1222594]
[1741874373392,0.2304,81822.0,81821.0,0.12224]
[1741874373690,0.2304,81817.0,81807.0,0.62738]
[1741874373984,0.1222504,81814.0,81813.0,0.00018332]
[1741874374385,0.2304,81817.0,81791.0,0.2361]
[1741874374686,0.21074428,81810.0,81782.0,0.00898441]
[1741874374987,0.2249,81813.0,81775.0,1.42172]
[1741874375281,0.21074428,81800.0,81771.0,0.2347]
[1741874375486,0.1222908,81787.0,81786.0,0.00018332]
[1741874375874,0.15,81787.0,81770.0,0.41335323]
[1741874376097,0.2224,81786.0,81778.0,0.1223033]
[1741874376281,0.2224,81786.0,81774.0,0.21883677]
[1741874376282,0.3914,81786.0,81774.0,0.21883677]
[1741874376588,0.0611469,81785.0,81777.0,0.1223043]
[1741874376885,0.3914,81786.0,81775.0,0.1223086]
[1741874376886,0.1223076,81776.0,81775.0,0.1223086]
[1741874377183,0.1223076,81776.0,81774.0,0.21883677]
[1741874377184,0.4024982,81786.0,81774.0,0.21883677]
[1741874377385,0.3914,81786.0,81774.0,0.21883677]
[1741874377589,0.3914,81786.0,81774.0,0.1223096]
[1741874377590,0.0611476,81784.0,81774.0,0.1223096]
[1741874377885,0.122308,81776.0,81774.0,0.061155]
[1741874378183,0.2224,81775.0,81773.0,0.00018332]
[1741874378485,0.2224,81775.0,81773.0,0.23578332]
[1741874378682,0.2224,81775.0,81774.0,0.1223102]
[1741874379078,0.2224,81775.0,81774.0,0.3395102]
[1741874379284,0.1223102,81774.0,81773.0,0.00018332]
[1741874379490,0.2224,81775.0,81773.0,0.00018332]
[1741874379685,0.1223102,81774.0,81773.0,0.00018332]
[1741874380981,0.1263102,81774.0,81773.0,0.00018332]
[1741874381288,0.004,81774.0,81753.0,0.2286]
[1741874381586,0.0611629,81764.0,81753.0,0.2286]
[1741874381777,0.1223296,81762.0,81757.0,0.122335]
[1741874381984,0.2204,81761.0,81753.0,0.2286]
[1741874382385,0.2815655,81761.0,81753.0,0.2286]
[1741874382687,0.1223351,81758.0,81756.0,0.1223364]
[1741874382887,0.2204,81757.0,81756.0,0.1223364]
[1741874383579,0.2204,81757.0,81751.0,0.00011057]
[1741874383779,0.2243,81756.0,81755.0,0.1223386]
[1741874384180,0.2224,81757.0,81755.0,0.13331002]
[1741874384480,0.2224,81757.0,81756.0,0.1223372]
[1741874384676,0.2224,81757.0,81756.0,0.5844372]
[1741874384884,0.002,81757.0,81756.0,0.5844372]
[1741874385078,0.2245,81780.0,81779.0,0.1223027]
[1741874385282,0.2245,81780.0,81774.0,0.1223094]
[1741874385484,0.4579,81779.0,81775.0,0.4576]
[1741874385790,0.4579,81779.0,81755.0,0.01112067]
[1741874386093,0.4579,81779.0,81757.0,0.2191]
[1741874386389,0.00018343,81775.0,81759.0,0.00018343]
[1741874386588,0.00018343,81775.0,81774.0,0.1223102]
[1741874387185,0.00018343,81775.0,81770.0,0.2288376]
[1741874387186,0.002,81779.0,81773.0,0.4451]
[1741874387386,0.4681,81778.0,81773.0,0.4451]
[1741874387591,0.4681,81778.0,81776.0,0.122306]
[1741874387790,0.001,81779.0,81778.0,0.1223042]
[1741874387983,0.001,81779.0,81778.0,0.5660042]
[1741874389295,0.00018306,81787.0,81786.0,0.1222923]
[1741874389593,0.2194,81797.0,81792.0,0.1222833]
[1741874389788,0.01302797,81807.0,81792.0,0.1222833]
[1741874389789,0.2374,81804.0,81792.0,0.1222833]
[1741874389978,0.4568,81804.0,81792.0,0.1222833]
[1741874390185,0.22627483,81817.0,81793.0,0.1222809]
[1741874390389,0.1222788,81795.0,81794.0,0.2246]
[1741874390682,0.23728285,81817.0,81778.0,0.002]
[1741874390683,0.167,81804.0,81778.0,0.002]
[1741874390882,0.1222908,81787.0,81786.0,0.00018343]
[1741874391992,0.1223102,81774.0,81773.0,0.2186]
[1741874392189,0.167,81789.0,81765.0,0.1223237]
[1741874392392,0.16696,81789.0,81760.0,0.29041095]
[1741874392593,0.1223028,81779.0,81778.0,0.1223031]
[1741874392789,0.16696,81789.0,81761.0,0.0611641]
[1741874393094,0.1222998,81783.0,81782.0,0.1222937]
[1741874393291,0.0611483,81784.0,81780.0,0.1223005]
[1741874393292,0.1223012,81781.0,81780.0,0.1223005]
[1741874393485,0.236,81782.0,81771.0,0.4378]
[1741874393688,0.1834583,81779.0,81778.0,0.1223027]
[1741874393887,0.0611474,81786.0,81771.0,0.4989567]
[1741874394191,0.0611478,81784.0,81783.0,0.1222953]
[1741874394593,0.1834533,81781.0,81780.0,0.1223007]
[1741874394896,0.0611506,81781.0,81780.0,0.1223007]
[1741874395089,0.4689,81781.0,81780.0,0.1223007]
[1741874395597,0.0111275,81787.0,81786.0,0.1222923]
[1741874395987,0.1334183,81787.0,81786.0,0.1222923]
[1741874396294,0.3655183,81787.0,81786.0,0.1222923]
[1741874396493,0.3655183,81787.0,81786.0,0.227]
[1741874396694,0.1834489,81783.0,81782.0,0.1222974]
[1741874397193,0.2396,81783.0,81781.0,0.5726998]
[1741874397497,0.0121275,81787.0,81786.0,0.1222923]
[1741874398090,0.1344183,81787.0,81786.0,0.1222923]
[1741874398291,0.3740183,81787.0,81786.0,0.1222923]
[1741874398483,0.36307423,81787.0,81786.0,0.1222923]
[1741874398792,0.1222983,81783.0,81782.0,0.1222937]
[1741874398994,0.1222983,81783.0,81782.0,0.3556937]
[1741874399291,0.1232983,81783.0,81782.0,0.5796937]
[1741874399689,0.1222949,81785.0,81784.0,0.1222938]
[1741874400192,0.0611528,81780.0,81713.0,0.03408044]
[1741874400389,0.1223147,81771.0,81735.0,0.4194]
[1741874400589,0.1223671,81736.0,81735.0,0.02]
[1741874400790,0.1223806,81727.0,81726.0,0.00928847]
[1741874401088,0.122403,81712.0,81700.0,0.1]
[1741874401289,0.1224165,81703.0,81700.0,0.1]
[1741874401691,0.1224195,81701.0,81700.0,4e-08]
[1741874401991,0.122424,81698.0,81697.0,0.11462059]
[1741874402189,0.289384,81698.0,81697.0,0.11462059]
[1741874402589,0.01133548,81698.0,81697.0,0.11462059]
[1741874402793,0.13364158,81698.0,81697.0,0.11462059]
[1741874402994,0.272424,81698.0,81697.0,0.11462059]
[1741874403299,0.1224285,81695.0,81694.0,0.00018354]
[1741874403594,0.12252217,81695.0,81694.0,4e-08]
[1741874403794,0.1224435,81685.0,81684.0,0.50067485]
[1741874404008,0.1224435,81685.0,81684.0,0.43047535]
[1741874404009,0.2834035,81685.0,81684.0,0.43047535]
[1741874404302,0.31696,81685.0,81677.0,0.43067036]
[1741874404599,0.327,81684.0,81665.0,0.37386207]
[1741874404796,0.28003797,81675.0,81665.0,0.37386207]
[1741874404998,1.65972,81674.0,81666.0,0.00018354]
[1741874405391,1.80972,81674.0,81666.0,0.00018354]
[1741874405596,0.0886,81673.0,81666.0,0.00018354]
[1741874405795,0.167,81672.0,81666.0,0.00018354]
[1741874406198,0.2217,81671.0,81666.0,0.00018354]
[1741874407005,1.4823716,81674.0,81666.0,0.00018354]
[1741874407006,0.00011198,81670.0,81666.0,0.00018354]
[1741874407503,0.15,81670.0,81666.0,0.00018354]
[1741874407706,0.2217,81669.0,81666.0,0.00018354]
[1741874407905,0.0886,81668.0,81666.0,0.00018354]
[1741874408406,0.2217,81667.0,81666.0,0.00018354]
[1741874408805,0.3717,81667.0,81666.0,0.00018354]
[1741874409004,0.3717,81667.0,81624.0,0.16708]
[1741874409207,0.28003797,81660.0,81624.0,0.17708]
[1741874409413,0.39328,81659.0,81624.0,0.17708]
[1741874409606,0.16708,81659.0,81630.0,0.28003797]
[1741874409802,0.16708,81659.0,81630.0,0.03]
[1741874410198,0.00018367,81653.0,81636.0,0.00018367]
[1741874410805,0.01135302,81653.0,81636.0,0.00018367]
[1741874411105,0.28003797,81650.0,81636.0,0.00018367]
[1741874411309,0.2262,81649.0,81636.0,0.00018367]
[1741874411612,0.0886,81648.0,81624.0,0.006]
[1741874411805,0.28003797,81640.0,81624.0,0.006]
[1741874412002,0.2166,81639.0,81624.0,0.006]
[1741874412204,0.2166,81639.0,81602.0,0.00910126]
[1741874412405,0.2166,81639.0,81602.0,0.27]
[1741874412909,0.2166,81639.0,81636.0,0.003]
[1741874412910,0.3193,81638.0,81636.0,0.003]
[1741874413100,0.3193,81638.0,81612.0,0.00018378]
[1741874413302,0.2166,81637.0,81603.0,0.2289]
[1741874413505,0.16716,81636.0,81617.0,0.00018378]
[1741874413701,0.00018378,81628.0,81617.0,0.00018378]
[1741874413905,0.00018378,81628.0,81600.0,0.0777018]
[1741874414106,0.00018378,81628.0,81600.0,0.41773977]
[1741874414308,0.0001179,81627.0,81601.0,0.45330798]
[1741874414507,0.2166,81642.0,81603.0,0.005]
[1741874414712,0.16716,81641.0,81604.0,0.16716]
[1741874414908,0.40326,81641.0,81600.0,0.0777018]
[1741874415106,0.40326,81641.0,81523.0,0.218]
[1741874415107,0.28003797,81610.0,81523.0,0.218]
[1741874415308,0.5613,81609.0,81560.0,0.28003797]
[1741874415503,0.4727,81609.0,81580.0,0.28003797]
[1741874415712,0.00018378,81593.0,81581.0,0.16764]
[1741874416016,0.00018378,81593.0,81581.0,0.24]
[1741874416314,0.2366,81629.0,81581.0,0.24]
[1741874416315,0.40366,81617.0,81582.0,0.16756]
[1741874416509,0.16792,81616.0,81600.0,0.004]
[1741874416706,0.40452,81616.0,81600.0,0.004]
[1741874416906,0.233,81615.0,81600.0,0.004]
[1741874417102,0.233,81615.0,81590.0,0.07734646]
[1741874417307,0.001,81593.0,81590.0,0.34734646]
[1741874417509,0.002,81593.0,81590.0,0.34734646]
[1741874417908,0.002,81593.0,81583.0,0.00018378]
[1741874418108,0.001,81593.0,81583.0,0.24018378]
[1741874418309,0.00018378,81611.0,81600.0,0.001]
[1741874419311,0.00018378,81611.0,81581.0,0.16748]
[1741874419520,0.00018378,81611.0,81581.0,0.44748]
[1741874419713,0.00018378,81611.0,81582.0,0.2393]
[1741874419913,0.00118378,81611.0,81582.0,0.5193]
[1741874420113,0.00118378,81611.0,81600.0,0.28003797]
[1741874420312,0.00118378,81611.0,81601.0,0.40654]
[1741874420514,0.17597062,81639.0,81602.0,1.75398899]
[1741874420705,0.16724,81650.0,81602.0,1.75398899]
[1741874420706,0.2235,81641.0,81617.0,0.28003797]
[1741874420906,0.2235,81641.0,81618.0,0.2331]
[1741874421318,0.2235,81641.0,81618.0,0.2531]
[1741874421515,0.2235,81641.0,81620.0,0.28003797]
[1741874421716,0.00018378,81638.0,81621.0,0.16766378]
[1741874422018,0.00018378,81638.0,81622.0,0.16736]
[1741874422321,0.00018378,81638.0,81622.0,0.20736]
[1741874422508,0.00018378,81638.0,81618.0,0.2331]
[1741874422713,0.00018378,81638.0,81620.0,0.01105652]
[1741874422907,0.00018378,81638.0,81620.0,0.02]
[1741874423125,0.00018378,81638.0,81621.0,0.00018378]
[1741874424117,0.00518378,81638.0,81621.0,0.00018378]
[1741874424520,0.4547,81637.0,81621.0,0.00018378]
[1741874424921,0.00918378,81638.0,81621.0,0.06018378]
[1741874425119,0.01018378,81638.0,81621.0,0.06018378]
[1741874425512,0.01018378,81638.0,81621.0,0.069532]
[1741874425925,0.01018378,81638.0,81621.0,0.40032099]
[1741874426616,0.00518378,81638.0,81621.0,0.40032099]
[1741874426812,0.01018378,81638.0,81621.0,0.40032099]
[1741874427021,0.00518378,81638.0,81621.0,0.40032099]
[1741874427327,0.005,81637.0,81622.0,0.12250473]
[1741874427514,0.005,81637.0,81622.0,0.37250473]
[1741874427716,0.17597062,81669.0,81623.0,0.0184]
[1741874428027,0.17597062,81669.0,81640.0,0.28003797]
[1741874428028,1e-08,81658.0,81640.0,0.28003797]
[1741874428329,0.12001652,81669.0,81668.0,0.122469]
[1741874428529,0.08607862,81669.0,81668.0,0.122469]
[1741874428720,0.08607862,81669.0,81668.0,0.182469]
[1741874429027,0.08607862,81669.0,81668.0,0.22724]
[1741874429229,0.08607862,81669.0,81668.0,0.349709]
[1741874429424,0.08607862,81669.0,81667.0,0.2166]
[1741874429721,0.08607862,81669.0,81654.0,0.0612449]
[1741874429722,0.2386,81668.0,81648.0,0.16724]
[1741874429922,0.1224795,81661.0,81651.0,0.1224936]
[1741874430119,0.0612375,81665.0,81657.0,0.0612426]
[1741874430324,0.08607862,81669.0,81657.0,0.0612426]
[1741874430325,0.2386,81662.0,81661.0,0.13437751]
[1741874430525,0.001,81669.0,81668.0,0.122469]
[1741874430833,0.001,81669.0,81668.0,0.13436771]
[1741874431129,0.001,81669.0,81668.0,0.13736771]
[1741874431320,0.001,81669.0,81668.0,0.125469]
[1741874431517,0.21116474,81680.0,81676.0,0.122457]
[1741874431721,0.21116474,81680.0,81676.0,0.192457]
[1741874432129,0.21116474,81680.0,81676.0,0.20621288]
[1741874432430,0.21116474,81680.0,81676.0,0.35511288]
[1741874432823,0.21116474,81680.0,81676.0,0.2189]
[1741874433017,0.21116474,81680.0,81676.0,0.341357]
[1741874433316,0.2275,81679.0,81676.0,0.23073687]
[1741874433523,0.2275,81679.0,81676.0,0.01183687]
[1741874433722,0.0612312,81673.0,81656.0,0.0612434]
[1741874433923,0.446,81672.0,81661.0,0.2266]
[1741874434124,0.1224803,81661.0,81652.0,0.1224915]
[1741874434323,0.2245,81660.0,81659.0,0.1224825]
[1741874434522,0.2245,81660.0,81657.0,0.2164]
[1741874434730,0.1224825,81659.0,81658.0,0.2266]
[1741874434925,0.2245,81660.0,81658.0,0.2266]
[1741874435129,0.061242,81658.0,81650.0,0.00018366]
[1741874435334,0.16738366,81667.0,81650.0,0.00018366]
[1741874435520,0.1224945,81651.0,81650.0,0.00018366]
[1741874436933,0.14128446,81651.0,81650.0,0.00018366]
[1741874437126,0.14128446,81651.0,81623.0,0.0612679]
[1741874437127,0.0612553,81641.0,81595.0,0.0184]
[1741874437332,0.2172,81650.0,81635.0,0.2327]
[1741874437633,0.2172,81650.0,81635.0,0.3552182]
[1741874437836,0.1225051,81644.0,81640.0,0.1225108]
[1741874438024,0.2172,81643.0,81640.0,0.2327]
[1741874438228,0.00018366,81650.0,81640.0,0.2327]
[1741874438432,0.00018366,81650.0,81649.0,0.1224975]
[1741874438935,0.00183734,81687.0,81663.0,0.061238]
[1741874439132,0.24768593,81698.0,81690.0,0.122436]
[1741874439332,0.24768593,81698.0,81697.0,0.1224255]
[1741874439633,0.1762,81743.0,81717.0,0.0611971]
[1741874439834,0.00156001,81733.0,81718.0,0.2201]
[1741874440038,0.28003797,81730.0,81699.0,0.1224214]
[1741874440236,0.1223895,81721.0,81720.0,0.00018354]
[1741874440440,0.1223895,81721.0,81720.0,4e-08]
[1741874440639,0.2723895,81721.0,81720.0,4e-08]
[1741874440832,0.1223895,81721.0,81720.0,4e-08]
[1741874441033,0.2723895,81721.0,81720.0,4e-08]
[1741874441237,0.1762,81723.0,81720.0,4e-08]
[1741874441436,0.1223895,81721.0,81720.0,4e-08]
[1741874441739,0.1273895,81721.0,81720.0,4e-08]
[1741874442041,0.5794895,81721.0,81720.0,4e-08]
[1741874442337,0.5744895,81721.0,81720.0,4e-08]
[1741874442537,0.5794895,81721.0,81720.0,0.00100004]
[1741874443537,0.5844895,81721.0,81720.0,0.00200004]
[1741874443835,0.7344895,81721.0,81720.0,4e-08]
[1741874444233,0.4631,81721.0,81720.0,4e-08]
[1741874444435,0.4631,81721.0,81720.0,0.12239104]
[1741874444631,0.5854895,81721.0,81720.0,4e-08]
[1741874444831,0.4571,81721.0,81720.0,4e-08]
[1741874445027,0.5854895,81721.0,81720.0,4e-08]
[1741874445229,0.7354895,81721.0,81720.0,4e-08]
[1741874445440,0.1224405,81687.0,81686.0,0.2191]
[1741874445742,0.16716,81706.0,81688.0,0.0612195]
[1741874445935,0.00183659,81719.0,81689.0,0.2319]
[1741874446243,0.1224106,81707.0,81705.0,0.1224125]
[1741874446441,0.2289,81718.0,81714.0,0.0611999]
[1741874446741,0.01413106,81739.0,81738.0,0.1223641]
[1741874447044,0.00018354,81747.0,81743.0,0.0611782]
[1741874447242,0.00018354,81747.0,81744.0,0.2191]
[1741874447444,0.00018354,81747.0,81746.0,0.1223521]
[1741874448037,0.28003797,81780.0,81746.0,0.1223521]
[1741874448038,0.0611507,81780.0,81746.0,0.06]
[1741874448339,0.1223344,81758.0,81746.0,0.06]
[1741874448542,0.2289,81779.0,81746.0,0.06]
[1741874448745,0.2214,81757.0,81753.0,0.1223411]
[1741874448943,0.1223386,81755.0,81754.0,0.2394]
[1741874449154,0.1223491,81748.0,81747.0,0.00018354]
[1741874449639,0.51497,81754.0,81747.0,0.00018354]
[1741874449840,0.1223423,81753.0,81747.0,0.00018354]
[1741874450142,0.061173,81751.0,81747.0,0.00018354]
[1741874450345,0.1223491,81748.0,81747.0,0.00018354]
[1741874451746,0.2723491,81748.0,81747.0,4e-08]
[1741874451949,0.2773491,81748.0,81747.0,4e-08]
[1741874452154,0.1273491,81748.0,81747.0,4e-08]
[1741874452354,0.2773491,81748.0,81747.0,4e-08]
[1741874453258,0.2967491,81748.0,81747.0,4e-08]
[1741874454055,0.2987491,81748.0,81747.0,4e-08]
[1741874454359,0.4487491,81748.0,81747.0,4e-08]
[1741874454763,0.2987491,81748.0,81747.0,4e-08]
[1741874455057,0.2937491,81748.0,81747.0,4e-08]
[1741874455745,0.2917491,81748.0,81747.0,4e-08]
[1741874455952,0.1273491,81748.0,81747.0,4e-08]
[1741874456660,0.7247491,81748.0,81747.0,4e-08]
[1741874456854,0.7297491,81748.0,81747.0,4e-08]
[1741874457448,0.7247491,81748.0,81747.0,4e-08]
[1741874457664,0.5797491,81748.0,81747.0,4e-08]
[1741874458762,0.5817491,81748.0,81747.0,4e-08]
[1741874459159,0.5747491,81748.0,81747.0,4e-08]
[1741874459354,0.5817491,81748.0,81747.0,4e-08]
[1741874459559,0.7579491,81748.0,81747.0,4e-08]
[1741874459754,0.9268691,81748.0,81747.0,4e-08]
[1741874459952,0.9218691,81748.0,81747.0,4e-08]
[1741874460153,0.4136,81748.0,81747.0,4e-08]
[1741874460358,0.3055491,81748.0,81747.0,4e-08]
[1741874460956,0.3015491,81748.0,81747.0,4e-08]
[1741874461262,0.1792,81748.0,81747.0,4e-08]
[1741874461467,0.3015491,81748.0,81747.0,4e-08]
[1741874461761,0.1253491,81748.0,81747.0,4e-08]
[1741874462861,0.3662491,81748.0,81747.0,4e-08]
[1741874463260,0.3662491,81748.0,81747.0,0.12235064]
[1741874463456,0.007,81748.0,81747.0,0.12235064]
[1741874463649,0.00183589,81765.0,81762.0,0.1223282]
[1741874464056,0.01437336,81779.0,81768.0,0.0611589]
[1741874464363,0.16924,81787.0,81763.0,0.5831263]
[1741874464562,0.2409,81786.0,81765.0,0.0611611]
[1741874464756,0.1223252,81764.0,81763.0,0.1838787]
[1741874464962,0.0611718,81752.0,81722.0,0.2372]
[1741874465264,0.2446754,81756.0,81755.0,4e-08]
[1741874465462,0.0611733,81750.0,81733.0,0.0611858]
[1741874465653,0.2365,81749.0,81731.0,0.2276]
[1741874465856,0.0611753,81747.0,81733.0,0.0611853]
[1741874466061,0.0611815,81739.0,81734.0,0.0611847]
[1741874466260,0.00183552,81769.0,81741.0,0.0611797]
[1741874466456,0.00018354,81747.0,81746.0,0.1223521]
[1741874466657,0.00018354,81747.0,81742.0,0.2276]
[1741874466861,0.1223566,81743.0,81742.0,0.2276]
[1741874467061,0.00018354,81747.0,81742.0,0.2276]
[1741874467062,0.00018354,81747.0,81746.0,0.1223521]
[1741874467259,0.1223566,81743.0,81742.0,0.2276]
[1741874467452,0.2365,81746.0,81743.0,0.1223536]
[1741874467657,0.2365,81746.0,81728.0,0.2276]
[1741874467658,0.2365,81746.0,81741.0,0.0611791]
[1741874467959,0.00018354,81747.0,81741.0,0.0611791]
[1741874467960,0.00018354,81747.0,81746.0,0.1223521]
[1741874468155,0.2259,81768.0,81746.0,0.0611757]
[1741874468361,1.42176,81781.0,81760.0,0.1223304]
[1741874468362,0.17012,81781.0,81760.0,0.1223304]
[1741874468566,0.12415382,81769.0,81768.0,0.1223192]
[1741874468758,0.00183552,81769.0,81767.0,0.219]
[1741874468962,0.00183552,81769.0,81741.0,0.17012]
[1741874469267,0.0611645,81762.0,81747.0,0.00018354]
[1741874469473,0.0611678,81757.0,81751.0,0.1223411]
[1741874469768,0.1223491,81749.0,81748.0,0.1223461]
[1741874469969,0.1223491,81749.0,81748.0,0.3503461]
[1741874470161,0.1223469,81752.0,81751.0,0.1223401]
[1741874470365,0.1223469,81752.0,81751.0,0.447]
[1741874470766,0.1223469,81752.0,81751.0,0.228]
[1741874471160,0.1223491,81748.0,81747.0,0.00018354]
[1741874471563,0.2920291,81748.0,81747.0,4e-08]
[1741874472065,0.001,81749.0,81748.0,0.1223491]
[1741874472264,0.001,81749.0,81748.0,0.5797491]
[1741874472573,0.0611633,81764.0,81748.0,0.4574]
[1741874472768,0.2304,81767.0,81748.0,0.4574]
[1741874472974,0.0611663,81760.0,81748.0,0.4574]